[Event "Ceske Budejovice GM 2019"]
[Site "Ceske Budejovice"]
[Date "2019.07.06"]
[Round "8.1"]
[White "Miesbauer, Jan"]
[Black "Kraus, Tomas"]
[Result "1-0"]
[ECO "A41"]
[WhiteElo "2409"]
[BlackElo "2486"]
[Annotator "ChessBase"]
[PlyCount "65"]
[EventDate "2019.07.02"]
[EventCountry "CZE"]
[SourceTitle "playchess.com"]
[Source "ChessBase"]
[SourceQuality "1"]
[TimeControl "5400+30"]

1. d4 {[%emt 0:00:00]} d6 {[%emt 0:00:09]} 2. Nf3 {[%emt 0:00:24]} Bg4 {[%emt 0:00:16]} 3. e4 {[%emt 0:01:12]} Nf6 {[%emt 0:04:00]} 4. Nc3 {[%emt 0:01:08]} Nbd7 {[%emt 0:02:33]} 5. Be3 {[%emt 0:01:48]} e5 {[%emt 0:00:53]} 6. h3 {[%emt 0:03:29]} Bh5 {[%emt 0:00:28]} 7. Qd2 {[%emt 0:04:35]} c6 {[%emt 0:03:48]} 8. O-O-O {[%emt 0:02:46]} b5 {[%emt 0:03:48]} 9. Bd3 {[%emt 0:04:37]} a6 {[%emt 0:12:33]} 10. Ne2 {[%emt 0:06:44]} c5 {[%emt 0:06:53]} 11. dxc5 {[%emt 0:03:42]} dxc5 {[%emt 0:03:12]} 12. c4 {[%emt 0:04:23]} Be7 {[%emt 0:09:05]} 13. g4 {[%emt 0:05:42]} Bg6 {[%emt 0:00:47]} 14. Ng3 {[%emt 0:00:42]} Qc7 {[%emt 0:05:04]} 15. g5 {[%emt 0:04:29]} Nh5 {[%emt 0:01:12]} 16. Nf5 {[%emt 0:01:13]} b4 {[%emt 0:06:17]} 17. Be2 {[%emt 0:11:40]} Rd8 {[%emt 0:09:05]} 18. Qc2 {[%emt 0:05:08]} Nb6 {[%emt 0:00:36]} 19. Rxd8+ {[%emt 0:01:39]} Bxd8 {[%emt 0:00:20]} 20. Nxe5 {[%emt 0:01:43]} Qxe5 {[%emt 0:03:30]} 21. Bxh5 {[%emt 0:00:07]} O-O {[%emt 0:01:45]} 22. Be2 {[%emt 0:01:29]} f6 {[%emt 0:03:22]} 23. h4 {[%emt 0:01:32]} fxg5 {[%emt 0:01:35]} 24. hxg5 {[%emt 0:00:11]} Na4 {[%emt 0:02:15]} 25. Bd3 {[%emt 0:01:12]} Qe8 {[%emt 0:02:27]} 26. Nh4 {[%emt 0:02:51]} Bc7 {[%emt 0:01:48]} 27. Nxg6 {[%emt 0:02:34]} hxg6 {[%emt 0:00:08]} 28. e5 {[%emt 0:02:34]} Bxe5 {[%emt 0:00:41]} 29. Bxg6 {[%emt 0:01:52]} Bxb2+ {[%emt 0:01:03]} 30. Kb1 {[%emt 0:02:24]} Qc6 {[%emt 0:02:53]} 31. Rh4 {[%emt 0:06:54]} Bd4 {[%emt 0:10:37]} 32. Bh7+ {[%emt 0:00:53]} Kf7 {[%emt 0:00:05]} 33. Qf5+ {[%emt 0:00:17]} 1-0

[Event "Ceske Budejovice GM 2019"]
[Site "Ceske Budejovice"]
[Date "2019.07.06"]
[Round "8.2"]
[White "Dhulipalla Bala Chandra Prasad"]
[Black "Vykouk, Jan"]
[Result "1-0"]
[ECO "D30"]
[WhiteElo "2419"]
[BlackElo "2453"]
[Annotator "ChessBase"]
[PlyCount "77"]
[EventDate "2019.07.02"]
[EventCountry "CZE"]
[SourceTitle "playchess.com"]
[Source "ChessBase"]
[SourceQuality "1"]
[TimeControl "5400+30"]

1. d4 {[%emt 0:00:00]} d5 {[%emt 0:00:00]} 2. c4 {[%emt 0:00:00]} e6 {[%emt 0:00:00]} 3. Nf3 {[%emt 0:00:02]} c6 {[%emt 0:00:00]} 4. Qc2 {[%emt 0:06:23]} f5 {[%emt 0:01:46]} 5. g3 {[%emt 0:00:35]} Nf6 {[%emt 0:00:16]} 6. Bg2 {[%emt 0:00:05]} Bd6 {[%emt 0:00:11]} 7. O-O {[%emt 0:00:06]} O-O {[%emt 0:00:05]} 8. Nc3 {[%emt 0:00:25]} Nbd7 {[%emt 0:00:21]} 9. cxd5 {[%emt 0:01:43]} cxd5 {[%emt 0:00:23]} 10. Nb5 {[%emt 0:01:20]} Bb8 {[%emt 0:00:15]} 11. Bf4 {[%emt 0:00:05]} Bxf4 {[%emt 0:00:16]} 12. gxf4 {[%emt 0:00:03]} Nb6 {[%emt 0:00:21]} 13. Nc7 {[%emt 0:09:11]} Rb8 {[%emt 0:00:04]} 14. Ng5 {[%emt 0:09:07]} Qd6 {[%emt 0:00:06]} 15. Qc5 {[%emt 0:00:37]} Rd8 {[%emt 0:00:08]} 16. Rfc1 {[%emt 0:38:32]} a6 {[%emt 0:12:28]} 17. a4 {[%emt 0:01:46]} h6 {[%emt 0:02:25]} 18. Nf3 {[%emt 0:03:17]} Nc4 {[%emt 0:08:17]} 19. Ne5 {[%emt 0:12:09]} Qxc5 {[%emt 0:01:10]} 20. dxc5 {[%emt 0:00:02]} Nxe5 {[%emt 0:00:17]} 21. fxe5 {[%emt 0:00:08]} Ng4 {[%emt 0:00:08]} 22. f4 {[%emt 0:01:30]} Kf7 {[%emt 0:04:43]} 23. Ra3 {[%emt 0:00:42]} d4 {[%emt 0:03:58]} 24. Rb3 {[%emt 0:00:39]} Bd7 {[%emt 0:00:26]} 25. Rxb7 {[%emt 0:00:39]} Ne3 {[%emt 0:04:35]} 26. Nxa6 {[%emt 0:00:34]} Rxb7 {[%emt 0:01:03]} 27. Bxb7 {[%emt 0:00:03]} g5 {[%emt 0:00:16]} 28. c6 {[%emt 0:00:53]} Bc8 {[%emt 0:00:28]} 29. c7 {[%emt 0:01:55]} Rg8 {[%emt 0:00:05]} 30. Bxc8 {[%emt 0:00:06]} gxf4+ {[%emt 0:00:04]} 31. Kf2 {[%emt 0:00:08]} Rxc8 {[%emt 0:00:18]} 32. b4 {[%emt 0:00:29]} Ng4+ {[%emt 0:00:21]} 33. Kf1 {[%emt 0:01:02]} Ne3+ {[%emt 0:01:52]} 34. Kf2 {[%emt 0:01:06]} Ng4+ {[%emt 0:00:26]} 35. Ke1 {[%emt 0:00:13]} f3 {[%emt 0:00:29]} 36. b5 {[%emt 0:01:40]} fxe2 {[%emt 0:02:24]} 37. Kxe2 {[%emt 0:00:51]} Nxe5 {[%emt 0:00:09]} 38. b6 {[%emt 0:00:24]} d3+ {[%emt 0:01:12]} 39. Kd2 {[%emt 0:00:11]} 1-0

[Event "Ceske Budejovice GM 2019"]
[Site "Ceske Budejovice"]
[Date "2019.07.06"]
[Round "8.3"]
[White "Olsen, Filip Boe"]
[Black "Kazakov, Mikhail"]
[Result "1/2-1/2"]
[ECO "D85"]
[WhiteElo "2383"]
[BlackElo "2511"]
[Annotator "ChessBase"]
[PlyCount "107"]
[EventDate "2019.07.02"]
[EventCountry "CZE"]
[SourceTitle "playchess.com"]
[Source "ChessBase"]
[SourceQuality "1"]
[TimeControl "5400+30"]

1. d4 {[%emt 0:00:00]} Nf6 {[%emt 0:00:12]} 2. c4 {[%emt 0:00:00]} g6 {[%emt 0:00:04]} 3. Nc3 {[%emt 0:00:00]} d5 {[%emt 0:00:06]} 4. cxd5 {[%emt 0:00:00]} Nxd5 {[%emt 0:00:05]} 5. e4 {[%emt 0:00:02]} Nxc3 {[%emt 0:00:08]} 6. bxc3 {[%emt 0:00:08]} Bg7 {[%emt 0:00:10]} 7. Be3 {[%emt 0:00:11]} c5 {[%emt 0:00:30]} 8. Rc1 {[%emt 0:00:09]} Qa5 {[%emt 0:00:53]} 9. Qd2 {[%emt 0:00:11]} O-O {[%emt 0:00:47]} 10. Nf3 {[%emt 0:00:18]} Nc6 {[%emt 0:04:36]} 11. d5 {[%emt 0:00:20]} Rd8 {[%emt 0:01:23]} 12. Be2 {[%emt 0:02:00]} b6 {[%emt 0:01:50]} 13. O-O {[%emt 0:03:59]} e6 {[%emt 0:00:20]} 14. Bg5 {[%emt 0:07:23]} f6 {[%emt 0:09:29]} 15. Bf4 {[%emt 0:05:42]} Ba6 {[%emt 0:07:37]} 16. Qc2 {[%emt 0:07:39]} Ne7 {[%emt 0:29:35]} 17. dxe6 {[%emt 0:14:10]} Bxe2 {[%emt 0:00:39]} 18. Qxe2 {[%emt 0:00:02]} Qa4 {[%emt 0:00:07]} 19. Rfd1 {[%emt 0:09:31]} Qc6 {[%emt 0:00:42]} 20. Qc4 {[%emt 0:04:49]} b5 {[%emt 0:01:19]} 21. Qb3 {[%emt 0:01:57]} a6 {[%emt 0:06:53]} 22. a4 {[%emt 0:09:30]} Bf8 {[%emt 0:16:35]} 23. e5 {[%emt 0:03:32]} c4 {[%emt 0:02:26]} 24. Qb2 {[%emt 0:01:31]} Qxe6 {[%emt 0:01:09]} 25. Nd4 {[%emt 0:03:03]} Qb6 {[%emt 0:04:00]} 26. axb5 {[%emt 0:14:57]} Nd5 {[%emt 0:03:13]} 27. Bg3 {[%emt 0:00:36]} axb5 {[%emt 0:05:05]} 28. Qxb5 {[%emt 0:00:28]} Qxb5 {[%emt 0:00:50]} 29. Nxb5 {[%emt 0:00:02]} Bh6 {[%emt 0:00:39]} 30. Rb1 {[%emt 0:02:57]} f5 {[%emt 0:00:05]} 31. f3 {[%emt 0:02:21]} Be3+ {[%emt 0:00:23]} 32. Bf2 {[%emt 0:00:29]} Bxf2+ {[%emt 0:00:48]} 33. Kxf2 {[%emt 0:00:02]} Nf4 {[%emt 0:00:18]} 34. Rd6 {[%emt 0:03:08]} Nd3+ {[%emt 0:02:03]} 35. Ke3 {[%emt 0:00:13]} Nxe5 {[%emt 0:00:12]} 36. Kd4 {[%emt 0:00:31]} Nf7 {[%emt 0:00:57]} 37. Rxd8+ {[%emt 0:00:15]} Rxd8+ {[%emt 0:00:06]} 38. Kxc4 {[%emt 0:00:09]} Rd2 {[%emt 0:00:05]} 39. Nd4 {[%emt 0:02:46]} Rxg2 {[%emt 0:00:47]} 40. Kd5 {[%emt 0:01:11]} Rxh2 {[%emt 0:01:39]} 41. c4 {[%emt 0:00:00]} f4 {[%emt 0:00:00]} 42. c5 {[%emt 0:00:00]} Rh5+ {[%emt 0:00:00]} 43. Ke4 {[%emt 0:00:00]} Kf8 {[%emt 0:00:00]} 44. c6 {[%emt 0:00:00]} Nd6+ {[%emt 0:00:00]} 45. Kxf4 {[%emt 0:00:00]} Rd5 {[%emt 0:00:00]} 46. c7 {[%emt 0:00:00]} Rxd4+ {[%emt 0:00:00]} 47. Ke5 {[%emt 0:00:00]} Rd3 {[%emt 0:00:00]} 48. Ke6 {[%emt 0:00:00]} Kg7 {[%emt 0:00:00]} 49. Rb8 {[%emt 0:00:00]} Nc8 {[%emt 0:00:00]} 50. Rxc8 {[%emt 0:00:00]} Rc3 {[%emt 0:00:00]} 51. Kd6 {[%emt 0:00:00]} Rd3+ {[%emt 0:00:00]} 52. Ke6 {[%emt 0:00:00]} Rc3 {[%emt 0:00:00]} 53. Kd6 {[%emt 0:00:00]} Rd3+ {[%emt 0:00:00]} 54. Ke6 {Kf8} 1/2-1/2

[Event "Ceske Budejovice GM 2019"]
[Site "Ceske Budejovice"]
[Date "2019.07.06"]
[Round "8.4"]
[White "Szotkowski, Jakub"]
[Black "Pulpan, Jakub"]
[Result "1-0"]
[ECO "E06"]
[WhiteElo "2378"]
[BlackElo "2414"]
[Annotator "NA"]
[PlyCount "47"]
[EventDate "2019.07.02"]
[EventCountry "CZE"]
[SourceTitle "playchess.com"]
[Source "ChessBase"]
[SourceQuality "1"]
[TimeControl "5400+30"]

1. d4 {[%emt 0:00:00]} Nf6 {[%emt 0:00:00]} 2. c4 {[%emt 0:00:00]} e6 {[%emt 0:00:20]} 3. g3 {[%emt 0:00:00]} d5 {[%emt 0:00:22]} 4. Bg2 {[%emt 0:00:00]} Be7 {[%emt 0:00:15]} 5. Nf3 {[%emt 0:00:09]} O-O {[%emt 0:00:10]} 6. O-O {[%emt 0:00:07]} dxc4 {[%emt 0:00:07]} 7. Qc2 {[%emt 0:00:07]} b6 {[%emt 0:00:18]} 8. Bg5 {[%emt 0:03:42]} Nd5 {[%emt 0:03:12]} 9. Bxe7 {[%emt 0:01:41]} Qxe7 {[%emt 0:00:08]} 10. Qxc4 {[%emt 0:10:13]} Ba6 {[%emt 0:03:15]} 11. Qc2 {[%emt 0:00:22]} c5 {[%emt 0:13:19]} 12. Nc3 {[%emt 0:06:30]} Nxc3 {[%emt 0:10:30]} 13. bxc3 {[%emt 0:02:11]} Bb7 {[%emt 0:06:19]} 14. dxc5 {[%emt 0:09:00]} bxc5 {[%emt 0:06:23]} 15. Rab1 {[%emt 0:01:19]} Bd5 {[%emt 0:07:15]} 16. c4 {[%emt 0:02:35]} Bc6 {[%emt 0:03:47]} 17. Rfd1 {[%emt 0:04:42]} g6 {[%emt 0:03:56]} 18. Ne5 {[%emt 0:05:58]} Qc7 {[%emt 0:13:15]} 19. Rxb8 {[%emt 0:12:33]} Bxg2 {[%emt 0:02:37]} 20. Rxf8+ {[%emt 0:00:15]} Kxf8 {[%emt 0:02:34]} 21. Nd7+ {[%emt 0:00:49]} Ke7 {[%emt 0:00:06]} 22. Qd2 {[%emt 0:00:13]} Bd5 {[%emt 0:01:36]} 23. Qg5+ {[%emt 0:03:23]} Kxd7 {[%emt 0:02:33]} 24. cxd5 {[%emt 0:00:21]} 1-0

[Event "Ceske Budejovice GM 2019"]
[Site "Ceske Budejovice"]
[Date "2019.07.07"]
[Round "9.1"]
[White "Simacek, Pavel"]
[Black "Miesbauer, Jan"]
[Result "1/2-1/2"]
[ECO "A53"]
[WhiteElo "2490"]
[BlackElo "2409"]
[Annotator "ChessBase"]
[PlyCount "115"]
[EventDate "2019.07.02"]
[EventCountry "CZE"]
[SourceTitle "playchess.com"]
[Source "ChessBase"]
[SourceQuality "1"]
[TimeControl "5400+30"]

1. d4 {[%emt 0:00:00]} Nf6 {[%emt 0:00:03]} 2. c4 {[%emt 0:00:04]} d6 {[%emt 0:01:01]} 3. Nc3 {[%emt 0:00:46]} Nbd7 {[%emt 0:00:24]} 4. Nf3 {[%emt 0:06:35]} e5 {[%emt 0:00:40]} 5. e3 {[%emt 0:00:10]} c6 {[%emt 0:01:19]} 6. Be2 {[%emt 0:00:22]} Be7 {[%emt 0:05:19]} 7. O-O {[%emt 0:02:27]} O-O {[%emt 0:00:15]} 8. b3 {[%emt 0:02:03]} e4 {[%emt 0:02:34]} 9. Nd2 {[%emt 0:00:05]} d5 {[%emt 0:00:11]} 10. f3 {[%emt 0:00:53]} exf3 {[%emt 0:01:53]} 11. Bxf3 {[%emt 0:00:14]} Bb4 {[%emt 0:00:55]} 12. Ndb1 {[%emt 0:12:55]} Nb6 {[%emt 0:04:47]} 13. c5 {[%emt 0:00:31]} Nbd7 {[%emt 0:00:13]} 14. a3 {[%emt 0:00:14]} Bxc3 {[%emt 0:00:35]} 15. Nxc3 {[%emt 0:00:03]} Re8 {[%emt 0:00:13]} 16. Qd3 {[%emt 0:00:13]} Qe7 {[%emt 0:01:38]} 17. b4 {[%emt 0:06:35]} Nf8 {[%emt 0:01:08]} 18. Bd2 {[%emt 0:01:21]} Bg4 {[%emt 0:14:58]} 19. Rae1 {[%emt 0:03:01]} Qd7 {[%emt 0:00:49]} 20. e4 {[%emt 0:02:52]} Bxf3 {[%emt 0:00:54]} 21. gxf3 {[%emt 0:18:20]} Ng6 {[%emt 0:01:46]} 22. Bg5 {[%emt 0:10:36]} Nh5 {[%emt 0:12:29]} 23. Qd2 {[%emt 0:00:43]} h6 {[%emt 0:02:04]} 24. Be3 {[%emt 0:00:15]} Re6 {[%emt 0:09:52]} 25. f4 {[%emt 0:05:59]} Rxe4 {[%emt 0:02:44]} 26. Nxe4 {[%emt 0:00:26]} dxe4 {[%emt 0:00:06]} 27. f5 {[%emt 0:03:25]} Nh4 {[%emt 0:02:01]} 28. Qe2 {[%emt 0:08:12]} Nf3+ {[%emt 0:00:55]} 29. Rxf3 {[%emt 0:00:26]} exf3 {[%emt 0:00:05]} 30. Qxf3 {[%emt 0:00:40]} Nf6 {[%emt 0:00:07]} 31. Bf2 {[%emt 0:00:23]} Re8 {[%emt 0:05:13]} 32. Re5 {[%emt 0:00:17]} a6 {[%emt 0:01:25]} 33. Kg2 {[%emt 0:00:17]} Nd5 {[%emt 0:01:17]} 34. Qe4 {[%emt 0:03:43]} Kf8 {[%emt 0:01:51]} 35. Bg3 {[%emt 0:00:31]} Rxe5 {[%emt 0:04:23]} 36. Qxe5 {[%emt 0:01:40]} f6 {[%emt 0:00:22]} 37. Qd6+ {[%emt 0:06:09]} Qxd6 {[%emt 0:00:14]} 38. Bxd6+ {[%emt 0:00:04]} Ke8 {[%emt 0:00:11]} 39. Kf3 {[%emt 0:00:05]} Nc3 {[%emt 0:00:19]} 40. Bf4 {[%emt 0:01:00]} Nb5 {[%emt 0:04:56]} 41. Ke4 {[%emt 0:00:00]} Nxa3 {[%emt 0:00:00]} 42. d5 {[%emt 0:00:00]} Nc2 {[%emt 0:00:00]} 43. Bd2 {[%emt 0:00:00]} cxd5+ {[%emt 0:00:00]} 44. Kxd5 {[%emt 0:00:00]} Kd7 {[%emt 0:00:00]} 45. Kc4 {[%emt 0:00:00]} Kc6 {[%emt 0:00:00]} 46. Bf4 {[%emt 0:00:00]} Na3+ {[%emt 0:00:00]} 47. Kb3 {[%emt 0:00:00]} Nb5 {[%emt 0:00:00]} 48. Kc4 {[%emt 0:00:00]} h5 {[%emt 0:00:00]} 49. Bg3 {[%emt 0:00:00]} h4 {[%emt 0:00:00]} 50. Bf4 {[%emt 0:00:00]} h3 {[%emt 0:00:00]} 51. Bg3 {[%emt 0:00:00]} b6 {[%emt 0:00:00]} 52. cxb6 {[%emt 0:00:24]} Kxb6 {[%emt 0:00:00]} 53. Bf2+ {[%emt 0:01:06]} Kc6 {[%emt 0:00:00]} 54. Bc5 {[%emt 0:00:15]} Nd6+ {[%emt 0:01:13]} 55. Bxd6 {[%emt 0:00:05]} Kxd6 {[%emt 0:00:05]} 56. Kd4 {[%emt 0:00:03]} Kc6 {[%emt 0:00:10]} 57. Kc4 {[%emt 0:00:09]} Kd6 {[%emt 0:00:05]} 58. Kd4 {[%emt 0:00:03] Kd5+} 1/2-1/2

[Event "Ceske Budejovice GM 2019"]
[Site "Ceske Budejovice"]
[Date "2019.07.07"]
[Round "9.3"]
[White "Kazakov, Mikhail"]
[Black "Szotkowski, Jakub"]
[Result "1-0"]
[ECO "A58"]
[WhiteElo "2511"]
[BlackElo "2378"]
[Annotator "ChessBase"]
[PlyCount "78"]
[EventDate "2019.07.02"]
[EventCountry "CZE"]
[SourceTitle "playchess.com"]
[Source "ChessBase"]
[SourceQuality "1"]
[TimeControl "5400+30"]

1. d4 {[%emt 0:00:00]} Nf6 {[%emt 0:00:00]} 2. c4 {[%emt 0:00:00]} c5 {[%emt 0:00:00]} 3. d5 {[%emt 0:00:00]} b5 {[%emt 0:00:02]} 4. cxb5 {[%emt 0:00:16]} a6 {[%emt 0:00:18]} 5. bxa6 {[%emt 0:00:05]} g6 {[%emt 0:00:22]} 6. Nc3 {[%emt 0:00:20]} Bg7 {[%emt 0:01:22]} 7. e4 {[%emt 0:04:59]} O-O {[%emt 0:00:12]} 8. a7 {[%emt 0:01:34]} Rxa7 {[%emt 0:01:46]} 9. Nf3 {[%emt 0:00:14]} d6 {[%emt 0:03:56]} 10. Be2 {[%emt 0:02:15]} Ba6 {[%emt 0:02:34]} 11. O-O {[%emt 0:00:55]} Nbd7 {[%emt 0:01:04]} 12. a4 {[%emt 0:00:43]} Qb6 {[%emt 0:04:07]} 13. Ra3 {[%emt 0:02:02]} Rb8 {[%emt 0:01:28]} 14. Bb5 {[%emt 0:00:41]} Ne8 {[%emt 0:10:40]} 15. Rb3 {[%emt 0:10:54]} Nc7 {[%emt 0:08:39]} 16. a5 {[%emt 0:06:30]} Qxa5 {[%emt 0:11:38]} 17. Bxd7 {[%emt 0:00:29]} Rxb3 {[%emt 0:00:40]} 18. Qxb3 {[%emt 0:00:58]} Rb7 {[%emt 0:01:34]} 19. Qc2 {[%emt 0:00:52]} Bxf1 {[%emt 0:00:46]} 20. Kxf1 {[%emt 0:00:48]} Nxd5 {[%emt 0:03:58]} 21. Nxd5 {[%emt 0:16:19]} Rxd7 {[%emt 0:00:16]} 22. g3 {[%emt 0:00:29]} e6 {[%emt 0:08:06]} 23. Nc3 {[%emt 0:05:22]} Rb7 {[%emt 0:08:13]} 24. Kg2 {[%emt 0:00:48]} Qb4 {[%emt 0:02:28]} 25. h4 {[%emt 0:03:06]} h6 {[%emt 0:04:13]} 26. Qd3 {[%emt 0:06:38]} c4 {[%emt 0:01:31]} 27. Qe3 {[%emt 0:02:43]} Kh7 {[%emt 0:03:05]} 28. Nh2 {[%emt 0:09:16]} Qa5 {[%emt 0:02:01]} 29. Ng4 {[%emt 0:07:18]} h5 {[%emt 0:00:22]} 30. Nh2 {[%emt 0:00:30]} Rb3 {[%emt 0:02:16]} 31. Nf3 {[%emt 0:03:18]} Bxc3 {[%emt 0:03:04]} 32. bxc3 {[%emt 0:04:08]} Qxc3 {[%emt 0:00:08]} 33. Qf4 {[%emt 0:01:10]} Kg8 {[%emt 0:01:47]} 34. e5 {[%emt 0:01:44]} dxe5 {[%emt 0:08:23]} 35. Nxe5 {[%emt 0:00:07]} Rb7 {[%emt 0:00:19]} 36. Be3 {[%emt 0:01:22]} Qc2 {[%emt 0:02:06]} 37. Qf3 {[%emt 0:01:10]} Qb3 {[%emt 0:02:34]} 38. Qf6 {[%emt 0:01:41]} Kh7 {[%emt 0:01:58]} 39. Nxf7 {[%emt 0:01:14]} Rb6 1-0

[Event "Ceske Budejovice GM 2019"]
[Site "Ceske Budejovice"]
[Date "2019.07.07"]
[Round "9.5"]
[White "Kraus, Tomas"]
[Black "Dhulipalla Bala Chandra Prasad"]
[Result "1-0"]
[ECO "A20"]
[WhiteElo "2486"]
[BlackElo "2419"]
[Annotator "ChessBase"]
[PlyCount "65"]
[EventDate "2019.07.02"]
[EventCountry "CZE"]
[SourceTitle "playchess.com"]
[Source "ChessBase"]
[SourceQuality "1"]
[TimeControl "5400+30"]

1. c4 {[%emt 0:02:07]} e5 {[%emt 0:00:00]} 2. a3 {[%emt 0:00:28]} Nf6 {[%emt 0:01:29]} 3. e3 {[%emt 0:02:22]} g6 {[%emt 0:00:18]} 4. b4 {[%emt 0:00:58]} Bg7 {[%emt 0:00:09]} 5. Bb2 {[%emt 0:00:04]} d6 {[%emt 0:00:04]} 6. Nf3 {[%emt 0:01:59]} O-O {[%emt 0:00:08]} 7. d4 {[%emt 0:00:52]} e4 {[%emt 0:12:22]} 8. Nfd2 {[%emt 0:00:28]} Re8 {[%emt 0:00:44]} 9. Nc3 {[%emt 0:00:48]} h5 {[%emt 0:00:35]} 10. Be2 {[%emt 0:06:40]} Nbd7 {[%emt 0:00:39]} 11. Qc2 {[%emt 0:04:53]} Qe7 {[%emt 0:00:28]} 12. Rc1 {[%emt 0:08:38]} c6 {[%emt 0:01:17]} 13. O-O {[%emt 0:04:30]} Nf8 {[%emt 0:13:06]} 14. d5 {[%emt 0:01:36]} Bf5 {[%emt 0:14:49]} 15. dxc6 {[%emt 0:02:25]} bxc6 {[%emt 0:00:20]} 16. Nb3 {[%emt 0:02:23]} Ne6 {[%emt 0:00:31]} 17. Rfd1 {[%emt 0:02:50]} h4 {[%emt 0:02:47]} 18. Nd4 {[%emt 0:02:28]} Nxd4 {[%emt 0:08:40]} 19. Rxd4 {[%emt 0:00:05]} Nd7 {[%emt 0:02:09]} 20. Rd2 {[%emt 0:08:24]} Ne5 {[%emt 0:04:52]} 21. Nxe4 {[%emt 0:04:33]} Rad8 {[%emt 0:16:12]} 22. Rcd1 {[%emt 0:03:13]} d5 {[%emt 0:05:40]} 23. cxd5 {[%emt 0:00:51]} cxd5 {[%emt 0:00:02]} 24. Rxd5 {[%emt 0:00:07]} Rxd5 {[%emt 0:00:03]} 25. Rxd5 {[%emt 0:00:06]} Qb7 {[%emt 0:01:32]} 26. Qa4 {[%emt 0:04:08]} Bd7 {[%emt 0:08:52]} 27. Qd1 {[%emt 0:01:48]} Be6 {[%emt 0:02:26]} 28. Rd8 {[%emt 0:04:15]} Qxe4 {[%emt 0:00:36]} 29. Rxe8+ {[%emt 0:00:06]} Kh7 {[%emt 0:00:02]} 30. Bxe5 {[%emt 0:02:16]} Bxe5 {[%emt 0:00:17]} 31. Bd3 {[%emt 0:00:48]} Qd5 {[%emt 0:01:05]} 32. Qh5+ {[%emt 0:00:10]} Kg7 {[%emt 0:00:09]} 33. Qh8# 1-0